fUSD/lending_fUSD_20251128
["ID","MTS","AMOUNT","RATE_DAILY","PERIOD"]
[395041632,1764366645896,-978.46648034,0.00015737,2]
[395041633,1764366645906,-5631.74626564,0.00015737,2]
[395041634,1764366645919,-2520.07373436,0.00015737,2]
[395041635,1764366645929,-166.66,0.00015768,2]
[395041636,1764366645939,-200.0,0.00015824,2]
[395041637,1764366645948,-384.83885913,0.00015846,2]
[395041638,1764366645958,-150.0,0.00015854,2]
[395041639,1764366645968,-200.0,0.0001589,2]
[395041640,1764366645977,-200.0,0.0001589,2]
[395041641,1764366645987,-162.04,0.00015908,2]
[395041642,1764366645996,-1982.6455,0.00015951,2]
[395041643,1764366646006,-1395.4059,0.00016037,2]
[395041644,1764366646016,-200.0,0.00016049,2]
[395041645,1764366646025,-200.0,0.00016049,2]
[395041646,1764366646034,-6678.02077281,0.00016051,2]
[395041647,1764366646046,-767.91326914,0.00016051,2]
[395041648,1764366646058,-838.520007,0.00016051,2]
[395041649,1764366646069,-4328.40000409,0.00016051,2]
[395041650,1764366646091,-3323.52466435,0.00016051,2]
[395041651,1764366646106,-1118.2926437,0.00016051,2]
[395041652,1764366646259,-956.0,0.00016051,2]
[395041983,1764366952234,158.65437161,0.00014982,2]
[395041985,1764367196381,202.0,9.989e-05,2]
[395041986,1764367196731,202.0,9.989e-05,2]
[395041987,1764367197062,202.0,9.989e-05,2]
[395041988,1764367197352,202.0,9.989e-05,2]
[395041989,1764367268089,158.65437161,0.00014981,2]
[395042037,1764367807237,5522.0,0.000105,5]
[395042043,1764367831981,-250.0,0.00015073,2]
[395042044,1764367831991,-1200.0,0.00015081,2]
[395042045,1764367832001,-300.0,0.00015081,2]
[395042046,1764367832011,-520.19217302,0.00015082,2]
[395042047,1764367832075,-1279.80782698,0.00015082,2]
[395042048,1764367832084,-2227.29869604,0.00015082,2]
[395042049,1764367832095,-472.70130396,0.00015082,2]
[395042050,1764367832105,-250.0,0.00015188,2]
[395042051,1764367832114,-150.0,0.00015288,2]
[395042052,1764367832124,-150.0,0.00015288,2]
[395042053,1764367832134,-150.0,0.00015288,2]
[395042054,1764367832143,-150.00000001,0.00015288,2]
[395042055,1764367832152,-158.13716324,0.00015288,2]
[395042056,1764367832161,-150.0,0.00015288,2]
[395042057,1764367832170,-500.0,0.00015356,2]
[395042058,1764367832180,-381.87282068,0.00015404,2]
[395042059,1764367832203,-118.12717932,0.00015404,2]
[395042060,1764367832212,-200.0,0.00015464,2]
[395042061,1764367832221,-754.66,0.00015505,2]
[395042062,1764367832231,-150.0,0.00015505,2]
[395042063,1764367832241,-167.12,0.00015608,2]
[395042064,1764367832250,-267.46074303,0.00015772,2]
[395042065,1764367832259,-300.0,0.00015772,2]
[395042066,1764367832268,-2942.0737488,0.00015781,2]
[395042069,1764367832278,-4313.3316694,0.00015781,2]
[395042070,1764367832287,-334.0,0.00015807,2]
[395042071,1764367832296,-179.15231971,0.00015838,2]
[395042072,1764367832306,-203.423362,0.00015861,2]
[395042073,1764367832315,-151.0,0.00016038,2]
[395042074,1764367832325,-386.87667747,0.0001604,2]
[395042075,1764367832335,-500.0,0.0001604,2]
[395042076,1764367832344,-553.64373807,0.0001604,2]
[395042077,1764367832354,-500.0,0.0001604,2]
[395042078,1764367832363,-500.0,0.0001604,2]
[395042079,1764367832372,-500.0,0.0001604,2]
[395042080,1764367832381,-500.0,0.0001604,2]
[395042081,1764367832391,-500.0,0.0001604,2]
[395042082,1764367832399,-500.0,0.0001604,2]
[395042083,1764367832408,-500.0,0.0001604,2]
[395042084,1764367832417,-500.0,0.0001604,2]
[395042085,1764367832427,-500.0,0.0001604,2]
[395042086,1764367832436,-500.0,0.0001604,2]
[395042087,1764367832446,-500.0,0.0001604,2]
[395042088,1764367832456,-151.0,0.0001604,2]
[395042089,1764367832466,-500.0,0.0001604,2]
[395042090,1764367832476,-500.0,0.0001604,2]
[395042091,1764367832487,-500.0,0.0001604,2]
[395042092,1764367832497,-500.0,0.0001604,2]
[395042093,1764367832506,-500.0,0.0001604,2]
[395042094,1764367832516,-500.0,0.0001604,2]
[395042095,1764367832525,-500.0,0.0001604,2]
[395042096,1764367832534,-500.0,0.0001604,2]
[395042097,1764367832543,-500.0,0.0001604,2]
[395042098,1764367832553,-500.0,0.0001604,2]
[395042099,1764367832563,-546.70822346,0.0001604,2]
[395042100,1764367832573,-500.0,0.0001604,2]
[395042101,1764367832585,-500.0,0.0001604,2]
[395042102,1764367832594,-500.0,0.0001604,2]
[395042103,1764367832604,-500.0,0.0001604,2]
[395042104,1764367832615,-500.0,0.0001604,2]
[395042105,1764367832624,-500.0,0.0001604,2]
[395042106,1764367832633,-500.0,0.0001604,2]
[395042107,1764367832644,-500.0,0.0001604,2]
[395042108,1764367832655,-500.0,0.0001604,2]
[395042109,1764367832664,-500.0,0.0001604,2]
[395042110,1764367832673,-500.0,0.0001604,2]
[395042111,1764367832682,-151.0,0.0001604,2]
[395042112,1764367832691,-500.0,0.0001604,2]
[395042113,1764367832701,-500.0,0.0001604,2]
[395042114,1764367832711,-200.0,0.0001604,2]
[395042115,1764367832720,-250.0,0.0001604,2]
[395042116,1764367832729,-250.0,0.0001604,2]
[395042117,1764367832740,-250.0,0.0001604,2]
[395042118,1764367832750,-250.0,0.0001604,2]
[395042119,1764367832759,-250.0,0.0001604,2]
[395042120,1764367832768,-250.0,0.0001604,2]
[395042121,1764367832777,-250.0,0.0001604,2]
[395042122,1764367832786,-250.0,0.0001604,2]
[395042123,1764367832795,-250.0,0.0001604,2]
[395042124,1764367832804,-250.0,0.0001604,2]
[395042125,1764367832815,-250.0,0.0001604,2]
[395042126,1764367832824,-250.0,0.0001604,2]
[395042127,1764367832833,-500.0,0.0001604,2]
[395042128,1764367832842,-500.0,0.0001604,2]
[395042129,1764367832851,-500.0,0.0001604,2]
[395042130,1764367832860,-500.0,0.0001604,2]
[395042131,1764367832869,-312.63742487,0.0001604,2]
[395042132,1764367832879,-2019.0,0.00016041,2]
[395042133,1764367832887,-197.57,0.00016041,2]
[395042134,1764367832896,-500.0,0.00016041,2]
[395042135,1764367832906,-500.0,0.00016041,2]
[395042136,1764367832915,-249.10787057,0.00016041,2]
[395042137,1764367832924,-150.0,0.00016041,2]
[395042138,1764367832933,-200.0,0.00016051,2]
[395042139,1764367832942,-200.0,0.00016051,2]
[395042140,1764367832951,-310.78504286,0.00016051,2]
[395042141,1764367832960,-1391.95902,0.00016051,2]
[395042142,1764367832969,-207.19002857,0.00016051,2]
[395042143,1764367832978,-207.19002857,0.00016051,2]
[395042144,1764367832987,-154.2796698,0.00016051,2]
[395042145,1764367832996,-200.0,0.00016051,2]
[395042146,1764367833006,-500.0,0.00016064,2]
[395042147,1764367833015,-166.66,0.00016081,2]
[395042148,1764367833025,-259.08,0.00016116,2]
[395042149,1764367833034,-15013.53,0.00016116,2]
[395042150,1764367833044,-150.0,0.00016137,2]
[395042151,1764367833054,-500.0,0.00016178,2]
[395042152,1764367833064,-500.0,0.00016178,2]
[395042153,1764367833074,-150.0,0.00016178,2]
[395042154,1764367833083,-200.0,0.00016212,2]
[395042155,1764367833093,-200.0,0.00016212,2]
[395042156,1764367833102,-168.0,0.00016314,2]
[395042157,1764367833112,-500.0,0.00016315,2]
[395042158,1764367833122,-500.0,0.00016315,2]
[395042159,1764367833132,-250.0,0.00016315,2]
[395042160,1764367833141,-322.170372,0.00016315,2]
[395042161,1764367833151,-322.170372,0.00016315,2]
[395042162,1764367833160,-322.170372,0.00016315,2]
[395042163,1764367833169,-322.170372,0.00016315,2]
[395042164,1764367833179,-200.0,0.00016374,2]
[395042165,1764367833188,-166.66,0.00016393,2]
[395042166,1764367833198,-151.0,0.00016393,2]
[395042167,1764367833207,-151.0,0.00016393,2]
[395042168,1764367833216,-255.032849,0.00016393,2]
[395042169,1764367833225,-255.032849,0.00016393,2]
[395042170,1764367833234,-255.032849,0.00016393,2]
[395042171,1764367833243,-255.032849,0.00016393,2]
[395042172,1764367833252,-151.0,0.00016438,2]
[395042173,1764367833261,-151.0,0.00016438,2]
[395042174,1764367833271,-151.0,0.00016438,2]
[395042175,1764367833280,-214.449082,0.00016438,2]
[395042176,1764367833290,-151.0,0.00016438,2]
[395042177,1764367833299,-151.0,0.00016438,2]
[395042178,1764367833308,-3512.31,0.00016438,2]
[395042179,1764367833318,-500.0,0.00016452,2]
[395042180,1764367833327,-600.0,0.00016452,2]
[395042181,1764367833337,-1800.0,0.00016452,7]
[395042182,1764367833347,-2700.0,0.00016452,7]
[395042183,1764367833357,-165.89,0.00016458,2]
[395042184,1764367833367,-168.0,0.00016494,2]
[395042185,1764367833376,-420.0,0.00016504,2]
[395042186,1764367833386,-250.0,0.00016571,2]
[395042187,1764367833395,-444.32173984,0.00016571,2]
[395042188,1764367833405,-532.03622096,0.00016587,2]
[395042189,1764367833415,-500.0,0.00016587,2]
[395042190,1764367833424,-500.0,0.00016587,2]
[395042191,1764367833433,-500.0,0.00016587,2]
[395042192,1764367833443,-500.0,0.00016587,2]
[395042193,1764367833452,-500.0,0.00016587,2]
[395042194,1764367833462,-500.0,0.00016587,2]
[395042195,1764367833472,-500.0,0.00016587,2]
[395042196,1764367833482,-500.0,0.00016587,2]
[395042197,1764367833492,-500.0,0.00016587,2]
[395042198,1764367833501,-500.0,0.00016587,2]
[395042199,1764367833511,-500.0,0.00016587,2]
[395042200,1764367833789,-169.46904785,0.00016587,2]
[395042201,1764367833799,-500.0,0.00016587,2]
[395042202,1764367833808,-500.0,0.00016587,2]
[395042203,1764367833818,-500.0,0.00016587,2]
[395042204,1764367833828,-500.0,0.00016587,2]
[395042205,1764367833838,-500.0,0.00016587,2]
[395042206,1764367833847,-500.0,0.00016587,2]
[395042207,1764367833856,-500.0,0.00016587,2]
[395042208,1764367833865,-500.0,0.00016587,2]
[395042209,1764367833875,-500.0,0.00016587,2]
[395042210,1764367833884,-500.0,0.00016587,2]
[395042211,1764367833893,-500.0,0.00016587,2]
[395042212,1764367833902,-500.0,0.00016587,2]
[395042213,1764367833911,-322.170372,0.00016587,2]
[395042214,1764367833920,-322.170372,0.00016587,2]
[395042215,1764367833929,-322.170372,0.00016587,2]
[395042216,1764367833938,-322.170372,0.00016587,2]
[395042217,1764367833947,-500.0,0.00016587,2]
[395042218,1764367833956,-1680.0,0.00016588,2]
[395042219,1764367833966,-574.12855637,0.00016588,2]
[395042220,1764367833975,-500.0,0.00016589,2]
[395042221,1764367833983,-168.0,0.00016596,2]
[395042222,1764367833992,-255.032849,0.00016597,2]
[395042223,1764367834001,-255.032849,0.00016597,2]
[395042224,1764367834011,-255.032849,0.00016597,2]
[395042225,1764367834020,-255.032849,0.00016597,2]
[395042226,1764367834030,-10127.7258081,0.00016609,2]
[395042227,1764367834039,-823.0,0.00016615,2]
[395042228,1764367834048,-660.0,0.00016615,2]
[395042229,1764367834057,-1193.0,0.00016615,2]
[395042230,1764367834066,-909.0,0.00016615,2]
[395042231,1764367834075,-562.0,0.00016615,2]
[395042232,1764367834084,-252.0,0.00016615,2]
[395042233,1764367834093,-2717.0,0.00016615,2]
[395042234,1764367834102,-255.032849,0.00016615,2]
[395042235,1764367834111,-255.032849,0.00016615,2]
[395042236,1764367834121,-255.032849,0.00016615,2]
[395042237,1764367834130,-255.032849,0.00016615,2]
[395042238,1764367834138,-322.170372,0.00016615,2]
[395042239,1764367834147,-322.170372,0.00016615,2]
[395042240,1764367834157,-322.170372,0.00016615,2]
[395042241,1764367834166,-322.170372,0.00016615,2]
[395042242,1764367834175,-725.90269164,0.0001666,2]
[395042243,1764367834184,-844.0543,0.000167,2]
[395042244,1764367834194,-970.0,0.000167,2]
[395042245,1764367834203,-502.41,0.00016712,2]
[395042246,1764367834212,-500.0,0.00016722,2]
[395042247,1764367834222,-500.0,0.00016726,2]
[395042248,1764367834232,-151.0,0.00016757,2]
[395042249,1764367834241,-151.0,0.00016757,2]
[395042250,1764367834250,-151.0,0.00016757,2]
[395042251,1764367834259,-256.76636,0.00016757,2]
[395042252,1764367834268,-151.0,0.00016758,2]
[395042253,1764367834278,-151.0,0.0001676,2]
[395042254,1764367834287,-500.0,0.00016773,2]
[395042255,1764367834296,-500.0,0.00016773,2]
[395042256,1764367834305,-500.0,0.00016773,2]
[395042257,1764367834314,-500.0,0.00016773,2]
[395042258,1764367834324,-200.0,0.00016773,2]
[395042259,1764367834333,-322.170372,0.00016799,2]
[395042260,1764367834342,-322.170372,0.00016799,2]
[395042261,1764367834352,-322.170372,0.00016799,2]
[395042262,1764367834361,-322.170372,0.00016799,2]
[395042263,1764367834370,-8416.37803104,0.000168,2]
[395042264,1764367834410,-764.63539681,0.000168,2]
[395042265,1764367834421,-740.10039311,0.000168,2]
[395042266,1764367838113,-151.0,0.00016615,2]
[395042267,1764367838123,-500.0,0.00016773,2]
[395042268,1764367838132,-207.19002858,0.00016799,2]
[395042269,1764367838141,-1341.80997142,0.000168,2]
[395042272,1764367838180,166.66,0.0001473,2]
[395042275,1764367838222,-414.18025489,0.000168,2]
[395042452,1764367840063,-166.66,0.0001504,2]
[395042453,1764367840073,-166.66,0.0001535,2]
[395042455,1764367840082,-166.66,0.0001566,2]
[395042457,1764367840091,-166.66,0.0001597,2]
[395042458,1764367840101,-166.66,0.0001628,2]
[395042460,1764367840110,-1714.15573729,0.00016615,2]
[395042470,1764367840209,-4789.84426271,0.00016615,2]
[395042472,1764367840218,-8651.87038656,0.000168,2]
[395042474,1764367840229,-47794.29395456,0.000168,2]
[395042482,1764367840310,-1823.0,0.000168,2]
[395042489,1764367840385,-1865.2,0.000168,2]
[395042495,1764367840446,-1455.83665154,0.000168,2]
[395042767,1764367843418,-29039.35866007,0.000168,2]
[395042768,1764367843427,-151.0,0.000168,2]
[395042769,1764367843437,-151.0,0.000168,2]
[395042770,1764367843446,-151.0,0.000168,2]
[395042771,1764367843455,-151.0,0.000168,2]
[395042772,1764367843464,-255.032849,0.000168,2]
[395042773,1764367843473,-255.032849,0.000168,2]
[395042774,1764367843482,-255.032849,0.000168,2]
[395042775,1764367843491,-255.032849,0.000168,2]
[395042776,1764367843500,-322.170372,0.000168,2]
[395042777,1764367843509,-322.170372,0.000168,2]
[395042778,1764367843517,-322.170372,0.000168,2]
[395042779,1764367843526,-322.170381,0.000168,2]
[395042780,1764367843535,-151.0,0.000168,2]
[395042781,1764367843544,-168.0,0.00016828,2]
[395042782,1764367843553,-500.0,0.00016863,2]
[395042783,1764367843562,-312.56437464,0.000169,2]
[395042784,1764367843571,-234.4651479,0.000169,2]
[395042785,1764367843584,-918.61603004,0.000169,2]
[395042786,1764367843593,-224.84754656,0.000169,2]
[395042787,1764367843602,-153.6076656,0.000169,2]
[395042788,1764367843612,-2510.01629868,0.000169,2]
[395042789,1764367843621,-352.6292604,0.000169,2]
[395042790,1764367843631,-227.87753752,0.000169,2]
[395042791,1764367843639,-168.0,0.00016943,2]
[395042792,1764367843648,-168.0,0.00016955,2]
[395042793,1764367843659,-500.0,0.00016973,2]
[395042794,1764367843668,-366.12430531,0.00016973,2]
[395042795,1764367843677,-615.51796754,0.00016973,2]
[395042796,1764367843686,-500.0,0.00016973,2]
[395042797,1764367843695,-500.0,0.00016973,2]
[395042798,1764367843704,-150.0,0.00016986,2]
[395042799,1764367843713,-150.0,0.00016986,2]
[395042800,1764367843722,-296.87113101,0.00016999,2]
[395042801,1764367843731,-332.62709138,0.00016999,2]
[395042802,1764367843740,-500.0,0.00016999,2]
[395042803,1764367843748,-500.0,0.00016999,3]
[395042804,1764367843757,-500.0,0.00016999,4]
[395042805,1764367843766,-500.0,0.00016999,5]
[395042806,1764367843775,-500.0,0.00016999,2]
[395042807,1764367843783,-500.0,0.00016999,2]
[395042808,1764367843792,-255.032849,0.00016999,2]
[395042809,1764367843801,-255.032849,0.00016999,2]
[395042810,1764367843810,-255.032849,0.00016999,2]
[395042811,1764367843819,-255.032841,0.00016999,2]
[395042813,1764367843828,-3366.0,0.00017,2]
[395042814,1764367843838,-500.0,0.00017,2]
[395042816,1764367843848,-68284.66491064,0.00017,2]
[395042949,1764367846614,-293.0,0.0001698,2]
[395042951,1764367846623,-6476.99999229,0.00017,2]
[395042962,1764367846711,-720.29999997,0.00017,2]
[395043077,1764368597379,197.25765147,0.00014982,2]
[395043078,1764368704457,161.11,7.829e-05,2]
[395043079,1764368704662,161.11,8.481e-05,2]
[395043080,1764368704855,161.11,9.134e-05,2]
[395043081,1764368705254,161.11,9.786e-05,2]
[395043082,1764368705468,161.11,0.00010438,2]
[395043083,1764368705693,161.11,0.00011091,2]
[395043084,1764368705889,161.11,0.00011743,2]
[395043085,1764368706495,161.11,0.00012396,2]
[395043086,1764368706581,161.11,0.00013048,2]
[395043087,1764368706672,161.11,0.000137,2]
[395043088,1764368706745,161.11,0.00014353,2]
[395043101,1764368917878,100000.0,0.00016,4]
[395043102,1764368917904,69256.74563816,0.00016,4]
[395043103,1764368938538,197.25765147,0.00014982,2]
[395043104,1764368948032,515.76410454,0.00016,4]
[395043105,1764368990963,589.98,0.00013699,2]
[395043120,1764369032212,-161.11,0.00015005,2]
[395043121,1764369032226,-250.0,0.00015035,2]
[395043122,1764369032235,-609.43048194,0.00015065,2]
[395043123,1764369032247,-22.03609406,0.00015065,2]
[395043124,1764369032256,-900.09983018,0.00015082,2]
[395043125,1764369032284,-499.90016982,0.00015082,2]
[395043126,1764369032293,-105.91293237,0.00015082,2]
[395043127,1764369032319,-1894.08706763,0.00015082,2]
[395043128,1764369032328,-266.0,0.00015287,2]
[395043129,1764369032337,-300.0,0.00015287,2]
[395043130,1764369032348,-1200.0,0.00015287,2]
[395043131,1764369032357,-300.0,0.00015287,2]
[395043132,1764369032368,-150.0,0.00015288,2]
[395043133,1764369032377,-150.0,0.00015288,2]
[395043134,1764369032386,-150.0,0.00015288,2]
[395043135,1764369032397,-150.0,0.00015288,2]
[395043136,1764369032406,-500.0,0.00015356,2]
[395043137,1764369032415,-250.0,0.00015505,2]
[395043138,1764369032425,-161.11,0.00015658,2]
[395043139,1764369032435,-300.0,0.00015702,2]
[395043140,1764369032445,-267.46074303,0.00015702,2]
[395043141,1764369032454,-5387.31476794,0.00015711,2]
[395043142,1764369032463,-455.18,0.00015729,2]
[395043143,1764369032472,-4040.71,0.00015733,2]
[395043144,1764369032482,-200.0,0.00015757,2]
[395043145,1764369032491,-1000.0,0.00015787,2]
[395043146,1764369032500,-354.98,0.00015795,2]
[395043147,1764369032509,-168.0,0.0001605,2]
[395043148,1764369032518,-462.02090096,0.00016073,2]
[395043149,1764369032527,-202.09,0.00016141,2]
[395043151,1764369032537,-5937.7453,0.00016193,2]
[395043153,1764369032547,-5000.00998207,0.000162,5]
[395043156,1764369032556,-550.0,0.00016282,2]
[395043157,1764369032565,-200.0,0.00016283,2]
[395043159,1764369032574,-553.64373807,0.00016283,2]
[395043161,1764369032584,-500.0,0.00016283,2]
[395043163,1764369032594,-500.0,0.00016283,2]
[395043165,1764369032603,-500.0,0.00016283,2]
[395043167,1764369032612,-500.0,0.00016283,2]
[395043169,1764369032621,-500.0,0.00016283,2]
[395043171,1764369032631,-500.0,0.00016283,2]
[395043174,1764369032640,-500.0,0.00016283,2]
[395043176,1764369032650,-321.13998193,0.00016283,2]
[395043177,1764369032659,-500.0,0.00016283,2]
[395043179,1764369032668,-386.87667747,0.00016283,2]
[395043181,1764369032678,-500.0,0.00016283,2]
[395043183,1764369032687,-500.0,0.00016283,2]
[395043186,1764369032696,-500.0,0.00016283,2]
[395043188,1764369032706,-500.0,0.00016283,2]
[395043190,1764369032715,-500.0,0.00016283,2]
[395043192,1764369032724,-500.0,0.00016283,2]
[395043194,1764369032734,-500.0,0.00016283,2]
[395043196,1764369032744,-500.0,0.00016283,2]
[395043198,1764369032753,-500.0,0.00016283,2]
[395043200,1764369032763,-500.0,0.00016283,2]
[395043202,1764369032772,-500.0,0.00016283,2]
[395043204,1764369032781,-500.0,0.00016283,2]
[395043205,1764369032790,-500.0,0.00016283,2]
[395043207,1764369032800,-500.0,0.00016283,2]
[395043209,1764369032809,-500.0,0.00016283,2]
[395043211,1764369032819,-500.0,0.00016283,2]
[395043213,1764369032829,-500.0,0.00016283,2]
[395043215,1764369032839,-151.0,0.00016283,2]
[395043218,1764369032850,-500.0,0.00016292,2]
[395043219,1764369032859,-500.0,0.00016292,2]
[395043222,1764369032869,-500.0,0.00016292,2]
[395043224,1764369032879,-500.0,0.00016292,2]
[395043226,1764369032889,-500.0,0.00016292,2]
[395043227,1764369032898,-500.0,0.00016292,2]
[395043230,1764369032907,-500.0,0.00016292,2]
[395043232,1764369032917,-500.0,0.00016292,2]
[395043233,1764369032926,-500.0,0.00016292,2]
[395043236,1764369032935,-500.0,0.00016292,2]
[395043237,1764369032945,-500.0,0.00016292,2]
[395043238,1764369032954,-500.0,0.00016292,2]
[395043240,1764369032963,-500.0,0.00016292,2]
[395043242,1764369032973,-500.0,0.00016292,2]
[395043243,1764369032982,-500.0,0.00016292,2]
[395043244,1764369032992,-475.94576853,0.00016292,2]
[395043245,1764369033001,-500.0,0.00016292,2]
[395043246,1764369033011,-500.0,0.00016292,2]
[395043247,1764369033020,-500.0,0.00016292,2]
[395043248,1764369033029,-500.0,0.00016292,2]
[395043249,1764369033038,-500.0,0.00016292,2]
[395043250,1764369033048,-500.0,0.00016292,2]
[395043251,1764369033058,-176.63644013,0.00016292,2]
[395043252,1764369033067,-295.01758682,0.00016438,2]
[395043253,1764369033076,-1400.0,0.00016452,7]
[395043254,1764369033086,-2000.0,0.00016452,7]
[395043255,1764369033095,-328.09812777,0.00016472,2]
[395043256,1764369033116,-89.71592994,0.00016472,2]
[395043257,1764369033126,-300.0,0.00016506,2]
[395043258,1764369033136,-182.19367473,0.00016506,2]
[395043259,1764369033146,-250.0,0.00016506,2]
[395043260,1764369033155,-362.95134582,0.0001666,2]
[395043261,1764369033165,-162.52077857,0.00016695,2]
[395043262,1764369033229,-334.2368,0.00016695,2]
[395043263,1764369038259,-451.14186505,0.00016695,2]
[395043264,1764369038273,-1112.73960418,0.00016695,2]
[395043265,1764369038283,-843.5345599,0.000167,2]
[395043284,1764369038589,-156.4654401,0.000167,2]
[395043286,1764369038599,-401.928,0.00016712,2]
[395043288,1764369038608,-202.01693131,0.000168,2]
[395043290,1764369038617,-1680.0,0.0001681,2]
[395043292,1764369038627,-1257.0,0.00016817,2]
[395043294,1764369038636,-615.25529757,0.00016817,2]
[395043296,1764369038647,-293.74470243,0.00016817,2]
[395043298,1764369038657,-1080.36403757,0.00016817,2]
[395043300,1764369038670,-112.63596243,0.00016817,2]
[395043303,1764369038681,-3419.36062193,0.00016817,2]
[395043306,1764369038701,-19.63937807,0.00016817,2]
[395043308,1764369038710,-1321.0,0.00016817,2]
[395043309,1764369038719,-610.0,0.00016817,2]
[395043312,1764369038729,-151.0,0.00016817,2]
[395043314,1764369038738,-151.0,0.00016817,2]
[395043316,1764369038748,-151.0,0.00016817,2]
[395043317,1764369038758,-151.0,0.00016817,2]
[395043319,1764369038767,-151.0,0.00016817,2]
[395043321,1764369038777,-151.0,0.00016817,2]
[395043323,1764369038787,-1159.96585,0.0001683,2]
[395043325,1764369038796,-151.0,0.0001683,2]
[395043327,1764369038805,-151.0,0.0001683,2]
[395043329,1764369038814,-151.0,0.0001683,2]
[395043331,1764369038824,-537.5340249,0.00016831,2]
[395043334,1764369038839,-170.98837609,0.00016831,2]
[395043336,1764369038848,-562.76962686,0.00016838,2]
[395043338,1764369038860,-717.12186419,0.00016838,2]
[395043340,1764369038870,-500.0,0.00016873,2]
[395043342,1764369038880,-500.0,0.00016873,2]
[395043343,1764369038889,-152.928092,0.00016873,2]
[395043344,1764369038899,-1257.91232319,0.00016886,2]
[395043345,1764369038908,-1257.91232319,0.00016888,2]
[395043346,1764369038917,-1257.91232319,0.00016889,2]
[395043347,1764369038927,-1257.91232319,0.00016891,2]
[395043348,1764369038936,-1257.91232319,0.00016892,2]
[395043349,1764369038945,-1257.91232319,0.00016894,2]
[395043350,1764369038954,-293.446216,0.00016894,2]
[395043351,1764369038963,-1257.91232319,0.00016895,2]
[395043352,1764369038972,-1257.91232319,0.00016897,2]
[395043353,1764369038981,-337.86223559,0.00016898,2]
[395043354,1764369038990,-1257.91232319,0.00016898,2]
[395043355,1764369038999,-267.91232112,0.000169,2]
[395043356,1764369039008,-1257.91232319,0.000169,2]
[395043357,1764369039017,-161.14788307,0.000169,2]
[395043358,1764369039026,-176.93190727,0.000169,2]
[395043359,1764369039034,-252.86284987,0.000169,2]
[395043360,1764369039043,-913.71094429,0.000169,2]
[395043372,1764369039355,-151.0,0.00016922,2]
[395043374,1764369039365,-151.0,0.00016922,2]
[395043376,1764369039374,-163.860722,0.00016922,2]
[395043378,1764369039383,-5757.6870434,0.00016944,2]
[395043380,1764369039392,-201.37552671,0.00016953,2]
[395043382,1764369039403,-500.0,0.00016973,2]
[395043384,1764369039412,-500.0,0.00016973,2]
[395043386,1764369039421,-500.0,0.00016973,2]
[395043388,1764369039430,-500.0,0.00016985,2]
[395043390,1764369039440,-296.28233422,0.00016985,2]
[395043392,1764369039449,-633.17335505,0.00016985,2]
[395043394,1764369039458,-250.51641668,0.00016985,2]
[395043396,1764369039467,-3585.1494917,0.00016986,2]
[395043398,1764369039477,-5911.4925086,0.00016986,2]
[395043401,1764369039489,-302.83253,0.00016986,2]
[395043412,1764369039595,190.0,0.00022,30]
[395043473,1764369040172,-552.35820018,0.00016817,2]
[395043486,1764369040300,-980.87251112,0.00016817,2]